bitfinex-derivatives/quotes_BTCF0:USTF0_20251228
["timestamp","ask_amount","ask_price","bid_price","bid_amount"]
[1766899116363,0.02498378,87730.0,87723.0,0.0114074]
[1766899116562,0.0684457,87737.0,87723.0,0.0114074]
[1766899116763,0.02498409,87736.0,87723.0,0.0114074]
[1766899116963,0.02498409,87735.0,87723.0,0.0114074]
[1766899117166,0.02498409,87734.0,87723.0,0.0114074]
[1766899117364,0.02498409,87733.0,87723.0,0.0114074]
[1766899117562,0.02498409,87732.0,87723.0,0.0114074]
[1766899117762,0.02498409,87731.0,87723.0,0.0114074]
[1766899117963,0.02498409,87730.0,87723.0,0.0114074]
[1766899118162,0.0684457,87737.0,87723.0,0.0114074]
[1766899118366,0.0249844,87736.0,87723.0,0.0114074]
[1766899118563,0.0249844,87735.0,87723.0,0.0114074]
[1766899118864,0.0249844,87734.0,87723.0,0.0114074]
[1766899119065,0.0249844,87733.0,87723.0,0.0114074]
[1766899119250,0.0249844,87732.0,87723.0,0.0114074]
[1766899119455,0.0249844,87731.0,87723.0,0.0114074]
[1766899119749,0.0249844,87730.0,87723.0,0.0114074]
[1766899120068,0.05704,87737.0,87723.0,0.0114074]
[1766899120267,0.02498445,87736.0,87723.0,0.0114074]
[1766899120458,0.02498445,87735.0,87723.0,0.0114074]
[1766899120758,0.02498445,87734.0,87723.0,0.0114074]
[1766899120955,0.02498445,87733.0,87723.0,0.0114074]
[1766899121154,0.02498445,87732.0,87723.0,0.0114074]
[1766899121448,0.02498445,87731.0,87723.0,0.0114074]
[1766899121652,0.02498445,87730.0,87723.0,0.0114074]
[1766899121853,0.05704,87737.0,87723.0,0.0114074]
[1766899122153,0.0249845,87736.0,87723.0,0.0114074]
[1766899122354,0.0249845,87735.0,87723.0,0.0114074]
[1766899122550,0.0249845,87734.0,87723.0,0.0114074]
[1766899122769,0.0249845,87733.0,87723.0,0.0114074]
[1766899122956,0.0249845,87732.0,87723.0,0.0114074]
[1766899123256,0.0249845,87731.0,87723.0,0.0114074]
[1766899123455,0.05704,87737.0,87723.0,0.0114074]
[1766899123655,0.0249845,87736.0,87723.0,0.0114074]
[1766899123856,0.0249845,87735.0,87723.0,0.0114074]
[1766899124154,0.0249845,87734.0,87723.0,0.0114074]
[1766899124354,0.0249845,87733.0,87723.0,0.0114074]
[1766899124555,0.0249845,87732.0,87723.0,0.0114074]
[1766899124760,0.0249845,87731.0,87723.0,0.0114074]
[1766899124967,0.05704,87737.0,87723.0,0.0114074]
[1766899125265,0.02498451,87736.0,87723.0,0.0114074]
[1766899125466,0.02498451,87735.0,87723.0,0.0114074]
[1766899125668,0.02498451,87734.0,87723.0,0.0114074]
[1766899125859,0.02498451,87733.0,87723.0,0.0114074]
[1766899126062,0.02498451,87732.0,87723.0,0.0114074]
[1766899126259,0.02498451,87731.0,87723.0,0.0114074]
[1766899126561,0.05704,87737.0,87726.0,0.011407]
[1766899126866,0.02498376,87736.0,87726.0,0.011407]
[1766899127059,0.02498376,87735.0,87726.0,0.011407]
[1766899127261,0.02498376,87734.0,87726.0,0.011407]
[1766899127465,0.02498376,87733.0,87723.0,0.0114074]
[1766899127665,0.02498376,87732.0,87723.0,0.0114074]
[1766899127965,0.05704,87737.0,87723.0,0.0114074]
[1766899128165,0.02498269,87736.0,87723.0,0.0114074]
[1766899128356,0.02498269,87735.0,87723.0,0.0114074]
[1766899128552,0.02498269,87734.0,87723.0,0.0114074]
[1766899128753,0.02498269,87733.0,87723.0,0.0114074]
[1766899129063,0.02498269,87732.0,87723.0,0.0114074]
[1766899129264,0.05704,87737.0,87723.0,0.0114074]
[1766899129458,0.02498168,87736.0,87723.0,0.0114074]
[1766899129666,0.02498168,87735.0,87723.0,0.0114074]
[1766899129855,0.02498168,87734.0,87723.0,0.0114074]
[1766899130059,0.02498168,87733.0,87725.0,0.0114071]
[1766899130259,0.02498168,87732.0,87725.0,0.0114071]
[1766899130468,0.05704,87737.0,87725.0,0.0114071]
[1766899130671,0.02498135,87736.0,87725.0,0.0114071]
[1766899130967,0.02498135,87735.0,87725.0,0.0114071]
[1766899131167,0.02498135,87734.0,87725.0,0.0114071]
[1766899131369,0.02498135,87733.0,87725.0,0.0114071]
[1766899131568,0.02498135,87732.0,87725.0,0.0114071]
[1766899131869,0.05704,87737.0,87725.0,0.0114071]
[1766899132067,0.02498108,87736.0,87725.0,0.0114071]
[1766899132270,0.02498108,87735.0,87725.0,0.0114071]
[1766899132468,0.02498108,87734.0,87725.0,0.0114071]
[1766899132670,0.02498108,87733.0,87725.0,0.0114071]
[1766899132868,0.02498108,87732.0,87725.0,0.0114071]
[1766899133063,0.02498108,87731.0,87725.0,0.0114071]
[1766899133269,0.05704,87737.0,87725.0,0.0114071]
[1766899133477,0.02498066,87736.0,87725.0,0.0114071]
[1766899133770,0.02498066,87735.0,87725.0,0.0114071]
[1766899133970,0.02498066,87734.0,87725.0,0.0114071]
[1766899134171,0.02498066,87733.0,87725.0,0.0114071]
[1766899134472,0.02498066,87732.0,87725.0,0.0114071]
[1766899134771,0.02498066,87731.0,87725.0,0.0114071]
[1766899135075,0.05704,87737.0,87725.0,0.0114071]
[1766899135270,0.0249805,87736.0,87725.0,0.0114071]
[1766899135471,0.0249805,87735.0,87725.0,0.0114071]
[1766899135770,0.0249805,87734.0,87725.0,0.0114071]
[1766899136074,0.0249805,87733.0,87725.0,0.0114071]
[1766899136272,0.0249805,87732.0,87725.0,0.0114071]
[1766899136473,0.0249805,87731.0,87725.0,0.0114071]
[1766899136674,0.05704,87737.0,87725.0,0.0114071]
[1766899136876,0.02498027,87736.0,87725.0,0.0114071]
[1766899137074,0.02498027,87735.0,87725.0,0.0114071]
[1766899137280,0.02498027,87734.0,87725.0,0.0114071]
[1766899137468,0.02498027,87733.0,87725.0,0.0114071]
[1766899137670,0.02498027,87732.0,87725.0,0.0114071]
[1766899137879,0.02498027,87731.0,87725.0,0.0114071]
[1766899138173,0.05704,87737.0,87725.0,0.0114071]
[1766899138374,0.02497968,87736.0,87725.0,0.0114071]
[1766899138677,0.02497968,87735.0,87725.0,0.0114071]
[1766899138870,0.02497968,87734.0,87725.0,0.0114071]
[1766899139170,0.02497968,87733.0,87725.0,0.0114071]
[1766899139371,0.02497968,87732.0,87725.0,0.0114071]
[1766899139572,0.02497968,87731.0,87725.0,0.0114071]
[1766899139773,0.05704,87737.0,87725.0,0.0114071]
[1766899140072,0.02497954,87736.0,87725.0,0.0114071]
[1766899140272,0.02497954,87735.0,87725.0,0.0114071]
[1766899140479,0.02497954,87734.0,87725.0,0.0114071]
[1766899140679,0.02497954,87733.0,87725.0,0.0114071]
[1766899140879,0.02497954,87732.0,87725.0,0.0114071]
[1766899141178,0.02497954,87731.0,87725.0,0.0114071]
[1766899141387,0.05704,87737.0,87725.0,0.0114071]
[1766899141571,0.02497953,87736.0,87725.0,0.0114071]
[1766899141771,0.02497953,87735.0,87725.0,0.0114071]
[1766899141979,0.02497953,87734.0,87725.0,0.0114071]
[1766899142280,0.02497953,87733.0,87725.0,0.0114071]
[1766899142469,0.02497953,87732.0,87725.0,0.0114071]
[1766899142666,0.02497953,87731.0,87725.0,0.0114071]
[1766899142882,0.05704,87737.0,87725.0,0.0114071]
[1766899143083,0.02499168,87736.0,87725.0,0.0114071]
[1766899143282,0.02499168,87735.0,87725.0,0.0114071]
[1766899143577,0.02499168,87734.0,87725.0,0.0114071]
[1766899143775,0.02499168,87733.0,87725.0,0.0114071]
[1766899143973,0.02499168,87732.0,87725.0,0.0114071]
[1766899144175,0.05704,87737.0,87725.0,0.0114071]
[1766899144473,0.02499171,87736.0,87725.0,0.0114071]
[1766899144674,0.02499171,87735.0,87725.0,0.0114071]
[1766899144971,0.02499171,87734.0,87725.0,0.0114071]
[1766899145174,0.02499171,87733.0,87725.0,0.0114071]
[1766899145377,0.02499171,87732.0,87725.0,0.0114071]
[1766899145578,0.05704,87737.0,87725.0,0.0114071]
[1766899145779,0.02499184,87736.0,87725.0,0.0114071]
[1766899146077,0.02499184,87735.0,87725.0,0.0114071]
[1766899146274,0.02499184,87734.0,87725.0,0.0114071]
[1766899146478,0.02499184,87733.0,87725.0,0.0114071]
[1766899146678,0.02499184,87732.0,87725.0,0.0114071]
[1766899146879,0.05704,87737.0,87725.0,0.0114071]
[1766899147177,0.02499194,87736.0,87725.0,0.0114071]
[1766899147377,0.02499194,87735.0,87725.0,0.0114071]
[1766899147587,0.02499194,87734.0,87725.0,0.0114071]
[1766899147777,0.02499194,87733.0,87725.0,0.0114071]
[1766899147978,0.02499194,87732.0,87725.0,0.0114071]
[1766899148179,0.05704,87737.0,87725.0,0.0114071]
[1766899148379,0.02499212,87736.0,87725.0,0.0114071]
[1766899148581,0.02499212,87735.0,87725.0,0.0114071]
[1766899148780,0.02499212,87734.0,87725.0,0.0114071]
[1766899148980,0.02499212,87733.0,87725.0,0.0114071]
[1766899149180,0.02499212,87732.0,87725.0,0.0114071]
[1766899149387,0.05704,87737.0,87725.0,0.0114071]
[1766899149583,0.02499242,87736.0,87725.0,0.0114071]
[1766899149881,0.02499242,87735.0,87725.0,0.0114071]
[1766899150082,0.02499242,87734.0,87725.0,0.0114071]
[1766899150282,0.02499244,87733.0,87725.0,0.0114071]
[1766899150482,0.02499244,87732.0,87725.0,0.0114071]
[1766899150684,0.05704,87737.0,87725.0,0.0114071]
[1766899150888,0.02499261,87736.0,87725.0,0.0114071]
[1766899151184,0.02499261,87735.0,87725.0,0.0114071]
[1766899151377,0.02499261,87734.0,87725.0,0.0114071]
[1766899151578,0.02499261,87733.0,87725.0,0.0114071]
[1766899151877,0.02499261,87732.0,87725.0,0.0114071]
[1766899152078,0.05704,87737.0,87725.0,0.0114071]
[1766899152287,0.02499316,87736.0,87725.0,0.0114071]
[1766899152485,0.02499316,87735.0,87725.0,0.0114071]
[1766899152672,0.02499316,87734.0,87725.0,0.0114071]
[1766899152876,0.02499316,87733.0,87725.0,0.0114071]
[1766899153077,0.05704,87737.0,87725.0,0.0114071]
[1766899153078,0.02499316,87732.0,87725.0,0.0114071]
[1766899153277,0.05704,87737.0,87725.0,0.0114071]
[1766899153480,0.0249938,87736.0,87725.0,0.0114071]
[1766899153776,0.0249938,87735.0,87725.0,0.0114071]
[1766899153974,0.0249938,87734.0,87725.0,0.0114071]
[1766899154179,0.0249938,87733.0,87725.0,0.0114071]
[1766899154476,0.0249938,87732.0,87725.0,0.0114071]
[1766899154678,0.05704,87737.0,87725.0,0.0114071]
[1766899154973,0.02499431,87736.0,87725.0,0.0114071]
[1766899155174,0.02499431,87735.0,87725.0,0.0114071]
[1766899155379,0.02499431,87734.0,87725.0,0.0114071]
[1766899155579,0.02499431,87733.0,87725.0,0.0114071]
[1766899155884,0.02499431,87732.0,87722.0,0.0114075]
[1766899156193,0.05704,87737.0,87722.0,0.0114075]
[1766899156488,0.02499515,87736.0,87722.0,0.0114075]
[1766899156697,0.02499515,87735.0,87722.0,0.0114075]
[1766899156888,0.02499515,87734.0,87722.0,0.0114075]
[1766899157081,0.02499515,87733.0,87722.0,0.0114075]
[1766899157279,0.02499515,87732.0,87722.0,0.0114075]
[1766899157478,0.05704,87737.0,87722.0,0.0114075]
[1766899157675,0.02499587,87736.0,87722.0,0.0114075]
[1766899157888,0.02499587,87735.0,87722.0,0.0114075]
[1766899158088,0.02499587,87734.0,87722.0,0.0114075]
[1766899158282,0.02499587,87733.0,87722.0,0.0114075]
[1766899158482,0.02499587,87732.0,87722.0,0.0114075]
[1766899158682,0.05704,87737.0,87722.0,0.0114075]
[1766899158894,0.02499622,87736.0,87722.0,0.0114075]
[1766899159198,0.02499622,87735.0,87722.0,0.0114075]
[1766899159492,0.02499622,87734.0,87722.0,0.0114075]
[1766899159688,0.02499622,87733.0,87722.0,0.0114075]
[1766899159884,0.02499622,87732.0,87722.0,0.0114075]
[1766899160187,0.05704,87737.0,87722.0,0.0114075]
[1766899160387,0.0249962,87736.0,87722.0,0.0114075]
[1766899160685,0.0249962,87735.0,87722.0,0.0114075]
[1766899160882,0.0249962,87734.0,87722.0,0.0114075]
[1766899161083,0.0249962,87733.0,87722.0,0.0114075]
[1766899161275,0.0249962,87732.0,87722.0,0.0114075]
[1766899161480,0.05704,87737.0,87722.0,0.0114075]
[1766899161693,0.0249962,87736.0,87722.0,0.0114075]
[1766899161891,0.0249962,87735.0,87722.0,0.0114075]
[1766899162089,0.0249962,87734.0,87722.0,0.0114075]
[1766899162294,0.0249962,87733.0,87722.0,0.0114075]
[1766899162486,0.0249962,87732.0,87722.0,0.0114075]
[1766899162686,0.05704,87737.0,87722.0,0.0114075]
[1766899162892,0.02499729,87736.0,87722.0,0.0114075]
[1766899163189,0.02499729,87735.0,87722.0,0.0114075]
[1766899163389,0.02499729,87734.0,87722.0,0.0114075]
[1766899163587,0.02499729,87733.0,87722.0,0.0114075]
[1766899163787,0.02499729,87732.0,87722.0,0.0114075]
[1766899163989,0.05704,87737.0,87722.0,0.0114075]
[1766899164191,0.02499729,87736.0,87722.0,0.0114075]
[1766899164382,0.02499729,87735.0,87722.0,0.0114075]
[1766899164585,0.02499729,87734.0,87722.0,0.0114075]
[1766899164784,0.02499729,87733.0,87722.0,0.0114075]
[1766899164984,0.02499729,87732.0,87722.0,0.0114075]
[1766899165185,0.05704,87737.0,87722.0,0.0114075]
[1766899165396,0.02499729,87736.0,87722.0,0.0114075]
[1766899165692,0.02499729,87735.0,87722.0,0.0114075]
[1766899165993,0.02499729,87734.0,87722.0,0.0114075]
[1766899166194,0.02499729,87733.0,87722.0,0.0114075]
[1766899166390,0.02499729,87732.0,87722.0,0.0114075]
[1766899166689,0.05704,87737.0,87722.0,0.0114075]
[1766899166890,0.02499729,87736.0,87722.0,0.0114075]
[1766899167085,0.02499729,87735.0,87722.0,0.0114075]
[1766899167284,0.02499729,87734.0,87722.0,0.0114075]
[1766899167488,0.02499729,87733.0,87722.0,0.0114075]
[1766899167691,0.02499729,87732.0,87722.0,0.0114075]
[1766899167985,0.05704,87737.0,87722.0,0.0114075]
[1766899168186,0.02499729,87736.0,87722.0,0.0114075]
[1766899168394,0.02499729,87735.0,87722.0,0.0114075]
[1766899168596,0.02499729,87734.0,87722.0,0.0114075]
[1766899168894,0.02499729,87733.0,87722.0,0.0114075]
[1766899169088,0.02499729,87732.0,87722.0,0.0114075]
[1766899169287,0.05704,87737.0,87722.0,0.0114075]
[1766899169487,0.0249973,87736.0,87722.0,0.0114075]
[1766899169695,0.0249973,87735.0,87722.0,0.0114075]
[1766899169882,0.0249973,87734.0,87722.0,0.0114075]
[1766899170085,0.0249973,87733.0,87722.0,0.0114075]
[1766899170287,0.0249973,87732.0,87720.0,0.05704]
[1766899170486,0.0114058,87736.0,87720.0,0.05704]
[1766899170487,0.0249973,87731.0,87720.0,0.05704]
[1766899170686,0.0114058,87736.0,87720.0,0.05704]
[1766899173596,0.0114058,87736.0,87721.0,0.0114077]
[1766899182601,0.0248928,87735.0,87721.0,0.0114077]
[1766899182791,0.0248928,87734.0,87721.0,0.0114077]
[1766899182992,0.02444218,87733.0,87721.0,0.0114077]
[1766899183191,0.0114058,87736.0,87721.0,0.0114077]
[1766899194912,0.02489149,87735.0,87721.0,0.0114077]
[1766899195110,0.02489149,87734.0,87721.0,0.0114077]
[1766899195305,0.02489149,87733.0,87721.0,0.0114077]
[1766899195504,0.02489149,87732.0,87721.0,0.0114077]
[1766899195705,0.02489149,87731.0,87721.0,0.0114077]
[1766899195905,0.0114058,87736.0,87721.0,0.0114077]
[1766899196106,0.02489168,87735.0,87721.0,0.0114077]
[1766899196309,0.02489168,87734.0,87721.0,0.0114077]
[1766899196508,0.02489168,87733.0,87721.0,0.0114077]
[1766899196711,0.02489168,87732.0,87721.0,0.0114077]
[1766899196910,0.02489168,87731.0,87721.0,0.0114077]
[1766899197107,0.0114058,87736.0,87721.0,0.0114077]
[1766899197309,0.02489213,87735.0,87721.0,0.0114077]
[1766899197509,0.02489213,87734.0,87721.0,0.0114077]
[1766899197710,0.02489213,87733.0,87721.0,0.0114077]
[1766899197910,0.02489213,87732.0,87721.0,0.0114077]
[1766899198110,0.02489213,87731.0,87721.0,0.0114077]
[1766899198308,0.0114058,87736.0,87721.0,0.0114077]
[1766899198514,0.02489244,87735.0,87721.0,0.0114077]
[1766899198713,0.02489244,87734.0,87721.0,0.0114077]
[1766899198902,0.02489244,87733.0,87721.0,0.0114077]
[1766899199106,0.02489244,87732.0,87721.0,0.0114077]
[1766899199306,0.02489244,87731.0,87721.0,0.0114077]
[1766899199514,0.0114058,87736.0,87721.0,0.0114077]
[1766899199713,0.02489284,87735.0,87721.0,0.0114077]
[1766899200014,0.02489284,87734.0,87721.0,0.0114077]
[1766899200316,0.02489284,87733.0,87721.0,0.0114077]
[1766899200515,0.02489284,87732.0,87721.0,0.0114077]
[1766899200815,0.02489284,87731.0,87721.0,0.0114077]
[1766899201014,0.0114058,87736.0,87720.0,0.05704]
[1766899201217,0.02489376,87735.0,87720.0,0.05704]
[1766899201406,0.02489376,87734.0,87720.0,0.05704]
[1766899201606,0.02489376,87733.0,87720.0,0.05704]
[1766899201806,0.02489376,87732.0,87720.0,0.05704]
[1766899202115,0.02489376,87731.0,87720.0,0.05704]
[1766899202418,0.0114058,87736.0,87720.0,0.05704]
[1766899202616,0.02489074,87735.0,87720.0,0.05704]
[1766899202818,0.02489074,87734.0,87720.0,0.05704]
[1766899203009,0.02489074,87733.0,87720.0,0.05704]
[1766899203211,0.02489074,87732.0,87720.0,0.05704]
[1766899203416,0.02489074,87731.0,87720.0,0.05704]
[1766899203617,0.0114058,87736.0,87720.0,0.05704]
[1766899203819,0.02489065,87735.0,87720.0,0.05704]
[1766899204020,0.02489065,87734.0,87720.0,0.05704]
[1766899204316,0.02489065,87733.0,87720.0,0.05704]
[1766899204509,0.02489065,87732.0,87720.0,0.05704]
[1766899204710,0.02489065,87731.0,87720.0,0.05704]
[1766899204910,0.02489065,87730.0,87720.0,0.05704]
[1766899205109,0.0114059,87735.0,87720.0,0.05704]
[1766899205317,0.02489006,87734.0,87720.0,0.05704]
[1766899205514,0.02489006,87733.0,87720.0,0.05704]
[1766899205713,0.02489006,87732.0,87720.0,0.05704]
[1766899205912,0.02489006,87731.0,87720.0,0.05704]
[1766899206112,0.02489006,87730.0,87720.0,0.05704]
[1766899206319,0.0114059,87735.0,87720.0,0.05704]
[1766899206521,0.02488962,87734.0,87720.0,0.05704]
[1766899206709,0.02488962,87733.0,87720.0,0.05704]
[1766899206911,0.02488962,87732.0,87720.0,0.05704]
[1766899207113,0.02488962,87731.0,87720.0,0.05704]
[1766899207314,0.02488962,87730.0,87720.0,0.05704]
[1766899207623,0.0114059,87735.0,87720.0,0.05704]
[1766899207923,0.11449953,87730.0,87720.0,0.05704]
[1766899208314,0.0114059,87735.0,87720.0,0.05704]
[1766899208514,0.02489541,87734.0,87720.0,0.05704]
[1766899208820,0.02489541,87733.0,87720.0,0.05704]
[1766899209021,0.03630171,87732.0,87720.0,0.05704]
[1766899209225,0.02489541,87731.0,87720.0,0.05704]
[1766899217728,0.02489541,87730.0,87720.0,0.05704]
[1766899217933,0.0684457,87737.0,87720.0,0.05704]
[1766899218230,0.02489759,87736.0,87720.0,0.05704]
[1766899218430,0.02489759,87735.0,87720.0,0.05704]
[1766899218633,0.02489759,87734.0,87720.0,0.05704]
[1766899218832,0.02489759,87733.0,87720.0,0.05704]
[1766899219032,0.02489759,87732.0,87720.0,0.05704]
[1766899219232,0.02489759,87731.0,87720.0,0.05704]
[1766899219433,0.02489759,87730.0,87720.0,0.05704]
[1766899219633,0.0684457,87737.0,87720.0,0.05704]
[1766899219833,0.02489731,87736.0,87720.0,0.05704]
[1766899220133,0.02489731,87735.0,87720.0,0.05704]
[1766899220433,0.02489731,87734.0,87720.0,0.05704]
[1766899220731,0.02489731,87733.0,87720.0,0.05704]
[1766899220932,0.02489731,87732.0,87720.0,0.05704]
[1766899221135,0.02489731,87731.0,87720.0,0.05704]
[1766899221327,0.02489731,87730.0,87721.0,0.0114077]
[1766899221528,0.0684457,87737.0,87721.0,0.0114077]
[1766899221828,0.02489716,87736.0,87721.0,0.0114077]
[1766899222025,0.02489716,87735.0,87721.0,0.0114077]
[1766899222221,0.02489716,87734.0,87721.0,0.0114077]
[1766899222421,0.02489716,87733.0,87721.0,0.0114077]
[1766899222638,0.02489716,87732.0,87721.0,0.0114077]
[1766899222837,0.02489716,87731.0,87720.0,0.05704]
[1766899223039,0.02489716,87730.0,87720.0,0.05704]
[1766899223238,0.0114059,87735.0,87720.0,0.05704]
[1766899223438,0.02489701,87734.0,87720.0,0.05704]
[1766899223641,0.02489701,87733.0,87720.0,0.05704]
[1766899223840,0.02489701,87732.0,87720.0,0.05704]
[1766899224137,0.02489701,87731.0,87720.0,0.05704]
[1766899224341,0.0114059,87735.0,87720.0,0.05704]
[1766899224533,0.02489703,87734.0,87720.0,0.05704]
[1766899224734,0.02489703,87733.0,87720.0,0.05704]
[1766899224939,0.02489703,87732.0,87720.0,0.05704]
[1766899225140,0.02489703,87731.0,87720.0,0.05704]
[1766899225341,0.0114059,87735.0,87720.0,0.05704]
[1766899225640,0.02489705,87734.0,87720.0,0.05704]
[1766899225839,0.02489705,87733.0,87720.0,0.05704]
[1766899226042,0.02489705,87732.0,87720.0,0.05704]
[1766899226339,0.02489705,87731.0,87717.0,0.00017102]
[1766899226542,0.02489707,87730.0,87717.0,0.00017102]
[1766899226737,0.02489707,87729.0,87717.0,0.00017102]
[1766899226937,0.154,87737.0,87717.0,0.00017102]
[1766899227141,0.02489695,87736.0,87717.0,0.00017102]
[1766899227437,0.02489695,87735.0,87717.0,0.00017102]
[1766899227636,0.02489695,87734.0,87717.0,0.00017102]
[1766899227840,0.02489695,87733.0,87717.0,0.00017102]
[1766899228140,0.02489695,87732.0,87717.0,0.00017102]
[1766899228338,0.11450399,87730.0,87708.0,0.09696]
[1766899228645,0.11450399,87730.0,87693.0,0.08222235]
[1766899228646,0.0114082,87718.0,87695.0,0.05704]
[1766899228837,0.02489695,87717.0,87701.0,0.0114103]
[1766899229033,0.02489695,87716.0,87701.0,0.0114103]
[1766899229235,0.05704,87718.0,87701.0,0.0114103]
[1766899229542,0.02514262,87717.0,87701.0,0.01158132]
[1766899229744,0.02514262,87716.0,87701.0,0.01158132]
[1766899229945,0.05721102,87718.0,87701.0,0.01158132]
[1766899230148,0.0114086,87715.0,87701.0,0.00017102]
[1766899230343,0.0114089,87713.0,87696.0,0.0114109]
[1766899230748,0.0114092,87710.0,87693.0,0.00011975]
[1766899230933,0.05721102,87718.0,87687.0,0.05708]
[1766899230934,0.0114096,87707.0,87687.0,0.05708]
[1766899231246,0.05708,87706.0,87688.0,0.011412]
[1766899231434,0.05708,87706.0,87688.0,0.01158302]
[1766899231829,0.00014188,87705.0,87688.0,0.01158302]
[1766899232031,0.00014188,87705.0,87690.0,0.0114116]
[1766899232743,0.00014188,87705.0,87688.0,0.00017102]
[1766899233840,0.00014188,87705.0,87696.0,0.0114108]
[1766899234145,8e-08,87706.0,87699.0,0.0114105]
[1766899239347,8e-08,87706.0,87693.0,0.0114112]
[1766899242646,0.15408,87705.0,87693.0,0.0114112]
[1766899243636,0.15408,87705.0,87695.0,0.011411]
[1766899247151,0.15408,87705.0,87697.0,0.0114107]
[1766899247450,0.15408,87705.0,87694.0,0.0114112]
[1766899247841,0.15408,87705.0,87696.0,0.0114109]
[1766899251951,0.15408,87705.0,87688.0,0.00017102]
[1766899252353,0.15408,87705.0,87692.0,0.0114114]
[1766899253453,0.15408,87705.0,87694.0,0.0114112]
[1766899254655,0.0114091,87711.0,87694.0,0.0114112]
[1766899254856,0.1794494,87710.0,87694.0,0.0114112]
[1766899255154,0.0253694,87709.0,87694.0,0.0114112]
[1766899255356,0.0253694,87708.0,87694.0,0.0114112]
[1766899255555,0.15408,87710.0,87694.0,0.0114112]
[1766899255756,0.02537921,87709.0,87694.0,0.0114112]
[1766899256057,0.02537921,87708.0,87694.0,0.0114112]
[1766899256248,0.15408,87710.0,87694.0,0.0114112]
[1766899256249,0.02537921,87707.0,87694.0,0.0114112]
[1766899256555,0.02537921,87706.0,87694.0,0.0114112]
[1766899256756,0.02537921,87705.0,87694.0,0.0114112]
[1766899256945,0.05708,87704.0,87694.0,0.0114112]
[1766899257357,0.05708,87704.0,87696.0,0.0114109]
[1766899258158,0.02543285,87703.0,87696.0,0.0114109]
[1766899258357,0.02543285,87702.0,87696.0,0.0114109]
[1766899258557,0.05708,87704.0,87696.0,0.0114109]
[1766899258760,0.02543283,87703.0,87696.0,0.0114109]
[1766899258958,0.02543283,87702.0,87696.0,0.0114109]
[1766899259159,0.05708,87704.0,87696.0,0.0114109]
[1766899259352,0.02543898,87703.0,87696.0,0.0114109]
[1766899259553,0.02543898,87702.0,87696.0,0.0114109]
[1766899259751,0.05708,87704.0,87696.0,0.0114109]
[1766899259952,0.02543898,87703.0,87696.0,0.0114109]
[1766899260253,0.02543898,87702.0,87696.0,0.0114109]
[1766899260458,0.02543898,87701.0,87696.0,0.0114109]
[1766899260657,0.05708,87704.0,87688.0,0.00017102]
[1766899260860,0.02545114,87703.0,87693.0,0.0114113]
[1766899261052,0.02545114,87702.0,87693.0,0.0114113]
[1766899261248,0.02545114,87701.0,87693.0,0.0114113]
[1766899261449,0.05708,87704.0,87693.0,0.0114113]
[1766899261654,0.02547298,87703.0,87693.0,0.0114113]
[1766899261958,0.02547298,87702.0,87693.0,0.0114113]
[1766899262155,0.02547298,87701.0,87693.0,0.0114113]
[1766899262356,0.05708,87704.0,87693.0,0.0114113]
[1766899262556,0.02547393,87703.0,87693.0,0.0114113]
[1766899262756,0.02547393,87702.0,87693.0,0.0114113]
[1766899262959,0.02547393,87701.0,87693.0,0.0114113]
[1766899263157,0.05708,87704.0,87693.0,0.0114113]
[1766899263358,0.02547458,87703.0,87693.0,0.0114113]
[1766899263559,0.02547458,87702.0,87693.0,0.0114113]
[1766899263760,0.02547458,87701.0,87693.0,0.0114113]
[1766899263961,0.05708,87704.0,87693.0,0.0114113]
[1766899264163,0.0254745,87703.0,87693.0,0.0114113]
[1766899264464,0.0254745,87702.0,87693.0,0.0114113]
[1766899264665,0.0254745,87701.0,87693.0,0.0114113]
[1766899264965,0.05708,87704.0,87693.0,0.0114113]
[1766899265264,0.02547438,87703.0,87693.0,0.0114113]
[1766899265566,0.02547438,87702.0,87693.0,0.0114113]
[1766899265752,0.02547438,87701.0,87693.0,0.0114113]
[1766899266064,0.05708,87704.0,87693.0,0.0114113]
[1766899266257,0.02547446,87703.0,87693.0,0.0114113]
[1766899266457,0.02547446,87702.0,87693.0,0.0114113]
[1766899266759,0.02547446,87701.0,87693.0,0.0114113]
[1766899266961,0.05708,87704.0,87693.0,0.0114113]
[1766899267160,0.02547446,87703.0,87693.0,0.0114113]
[1766899267364,0.02547446,87702.0,87693.0,0.0114113]
[1766899267555,0.02547446,87701.0,87693.0,0.0114113]
[1766899267755,0.05708,87704.0,87693.0,0.0114113]
[1766899267957,0.02547451,87703.0,87693.0,0.0114113]
[1766899268256,0.02547451,87702.0,87693.0,0.0114113]
[1766899268456,0.02547451,87701.0,87693.0,0.0114113]
[1766899268657,0.05708,87704.0,87693.0,0.0114113]
[1766899268859,0.02547457,87703.0,87693.0,0.0114113]
[1766899269058,0.02547457,87702.0,87695.0,0.011411]
[1766899269262,0.05708,87704.0,87695.0,0.011411]
[1766899271955,0.05708,87704.0,87688.0,0.00017102]
[1766899272160,0.05708,87705.0,87698.0,0.0114106]
[1766899272360,0.05708,87705.0,87696.0,0.0114109]
[1766899272560,0.05708,87705.0,87698.0,0.0114107]
[1766899273567,0.06144,87716.0,87690.0,0.11450399]
[1766899273762,0.15408,87715.0,87706.0,0.0114096]
[1766899274063,0.15408,87715.0,87703.0,0.01141]
[1766899274969,0.15408,87715.0,87705.0,0.0114097]
[1766899275172,0.0728474,87724.0,87705.0,0.0114097]
[1766899275469,0.15408,87717.0,87705.0,0.0114097]
[1766899278567,0.06144,87726.0,87705.0,0.0114097]
[1766899278568,0.05708,87716.0,87705.0,0.0114097]
[1766899280373,0.05708,87716.0,87702.0,0.0114101]
[1766899281275,0.02530891,87715.0,87702.0,0.0114101]
[1766899281570,0.02530891,87714.0,87702.0,0.0114101]
[1766899281771,0.02530891,87713.0,87702.0,0.0114101]
[1766899281974,0.02530891,87712.0,87702.0,0.0114101]
[1766899282172,0.02530891,87711.0,87702.0,0.0114101]
[1766899282471,0.05708,87716.0,87702.0,0.0114101]
[1766899282677,0.02530767,87715.0,87702.0,0.0114101]
[1766899282971,0.02530767,87714.0,87702.0,0.0114101]
[1766899283266,0.02530767,87713.0,87702.0,0.0114101]
[1766899283471,0.02530767,87712.0,87702.0,0.0114101]
[1766899283672,0.05708,87716.0,87702.0,0.0114101]
[1766899283874,0.0253068,87715.0,87702.0,0.0114101]
[1766899284072,0.0253068,87714.0,87702.0,0.0114101]
[1766899284373,0.0253068,87713.0,87702.0,0.0114101]
[1766899284573,0.0253068,87712.0,87702.0,0.0114101]
[1766899284775,0.05708,87716.0,87702.0,0.0114101]
[1766899284969,0.02530605,87715.0,87702.0,0.0114101]
[1766899285170,0.02530605,87714.0,87702.0,0.0114101]
[1766899285369,0.02530605,87713.0,87702.0,0.0114101]
[1766899285668,0.02530605,87712.0,87702.0,0.0114101]
[1766899285868,0.05708,87716.0,87702.0,0.0114101]
[1766899286068,0.0253055,87715.0,87702.0,0.0114101]
[1766899286270,0.0253055,87714.0,87702.0,0.0114101]